bitfinex/quotes_ETHUSD_20230109
["timestamp","ask_amount","ask_price","bid_price","bid_amount"]
[1673222700485,20.07504951,1290.0,1289.6,8.22878163]
[1673222700680,27.82704951,1290.0,1289.6,15.50826]
[1673222700890,23.19504951,1290.0,1289.6,15.50826]
[1673222701064,3.98914951,1289.9,1289.4,15.52954163]
[1673222701442,3.98914951,1289.9,1289.5,15.50978]
[1673222701443,3.98914951,1289.8,1289.5,15.50978]
[1673222701841,3.98914951,1289.8,1289.5,23.26472]
[1673222702047,3.98914951,1289.8,1289.5,15.50978]
[1673222702258,3.98914951,1289.7,1289.5,15.50978]
[1673222702450,3.98914951,1289.7,1289.5,7.75484]
[1673222702805,3.98914951,1289.7,1289.5,7.75465]
[1673222703372,3.98914951,1289.7,1289.5,15.50959]
[1673222703620,3.98914951,1289.7,1289.5,7.75465]
[1673222703833,3.98914951,1289.7,1289.4,1.282]
[1673222704050,3.98914951,1289.6,1289.2,20.1827]
[1673222704382,27.25420951,1289.5,1289.1,19.09649]
[1673222704591,11.74408951,1289.5,1289.2,7.75655]
[1673222704828,3.98914951,1289.5,1289.2,15.51329]
[1673222704951,0.5821,1289.6,1289.2,23.27003]
[1673222705168,4.57124951,1289.6,1289.3,5.5]
[1673222705549,4.57124951,1289.6,1289.4,15.51108]
[1673222705709,4.57124951,1289.6,1289.3,13.25582]
[1673222705903,12.32559951,1289.6,1289.3,5.5]
[1673222706123,27.83428951,1289.6,1289.3,5.5]
[1673222706318,27.83428951,1289.6,1289.2,1.282]
[1673222706532,7.75506,1289.5,1289.2,14.53823]
[1673222706790,12.32577951,1289.6,1289.2,14.53823]
[1673222707000,27.83503951,1289.6,1289.2,22.29497]
[1673222707216,12.32577951,1289.6,1289.3,13.25612]
[1673222707403,12.32577951,1289.6,1289.3,15.51226]
[1673222707647,4.57124951,1289.6,1289.3,15.51226]
[1673222707849,4.57124951,1289.6,1289.3,23.2684]
[1673222707850,0.5821,1289.6,1289.3,23.2684]
[1673222708062,0.5819,1289.9,1289.5,6.782]
[1673222708391,25.1208772,1290.1,1289.6,23.26212]
[1673222708701,3.98914951,1290.0,1289.6,23.26212]
[1673222709059,3.98914951,1290.0,1289.7,5.5]
[1673222709270,3.98914951,1290.0,1289.8,15.50628]
[1673222709480,5.0,1289.9,1289.8,23.25942]
[1673222710041,36.3493772,1290.3,1289.8,25.01628163]
[1673222710251,30.61,1290.3,1289.8,25.00828163]
[1673222710458,34.59914951,1290.3,1290.0,7.75181]
[1673222710688,5.0,1290.1,1289.9,2.0]
[1673222711007,5.0,1290.1,1289.9,7.75225]
[1673222711220,3.98914951,1290.2,1289.9,7.75225]
[1673222711579,8.33191,1290.3,1289.9,7.75225]
[1673222711837,4.57084951,1290.3,1289.9,23.25731]
[1673222712007,4.57084951,1290.3,1290.0,5.5]
[1673222712008,3.98914951,1290.3,1290.0,5.5]
[1673222712429,11.73959951,1290.3,1290.0,5.5]
[1673222712662,11.73959951,1290.3,1289.9,15.50468]
[1673222712869,3.98914951,1290.2,1289.9,23.25702]
[1673222713059,3.98914951,1290.1,1289.8,21.00574]
[1673222713275,3.98914951,1290.0,1289.7,7.75325]
[1673222713693,3.98914951,1290.0,1289.7,15.50667]
[1673222713943,3.98914951,1290.0,1289.7,15.50339128]
[1673222715065,21.7532,1289.8,1289.0,24.85837158]
[1673222715313,21.7532,1289.8,1289.1,10.8319]
[1673222715314,3.98914951,1289.7,1289.1,10.8319]
[1673222715522,6.98914951,1289.6,1289.1,3.075]
[1673222715677,3.98914951,1289.5,1289.1,10.83192]
[1673222715895,6.98914951,1289.6,1289.1,18.58927]
[1673222716137,3.98914951,1289.5,1289.0,27.98915948]
[1673222716362,3.98914951,1289.4,1289.0,9.30895948]
[1673222716532,4.57134951,1289.4,1289.0,9.30895948]
[1673222716749,3.98914951,1289.4,1289.0,8.91305948]
[1673222716999,3.98914951,1289.4,1289.0,16.67100948]
[1673222718532,3.98914951,1289.4,1289.0,8.91305948]
[1673222718973,3.98914951,1289.4,1289.0,1.15566948]
[1673222719360,0.05,1289.2,1289.0,1.15566948]
[1673222719566,11.74481951,1289.4,1289.0,1.15566948]
[1673222719815,19.50048951,1289.4,1289.0,1.15566948]
[1673222720822,3.98914951,1289.3,1289.0,1.15566948]
[1673222721149,3.98914951,1289.3,1289.0,8.91348948]
[1673222721725,3.98914951,1289.3,1289.0,24.42938948]
[1673222722040,0.5821,1289.5,1289.2,23.26986]
[1673222722289,3.0,1289.6,1289.2,23.26986]
[1673222722290,71.8021,1289.8,1289.2,31.02648]
[1673222722461,3.98914951,1289.7,1289.2,31.50134163]
[1673222722884,4.57114951,1289.7,1289.3,5.5]
[1673222723094,4.57114951,1289.7,1289.3,6.777]
[1673222723312,4.57114951,1289.7,1289.4,0.47486163]
[1673222723522,1.229,1289.5,1289.4,0.47486163]
[1673222723740,5.21814951,1289.5,1289.4,0.47486163]
[1673222724031,0.582,1289.7,1289.4,15.98568163]
[1673222724309,4.57114951,1289.7,1289.4,23.74122163]
[1673222724455,4.57114951,1289.7,1289.4,15.98568163]
[1673222725337,19.49782951,1289.6,1289.4,0.47486163]
[1673222725506,3.98914951,1289.5,1289.1,13.22283]
[1673222725872,11.74420951,1289.5,1289.1,15.51398]
[1673222726094,12.32630951,1289.5,1289.1,15.51398]
[1673222726915,3.98914951,1289.4,1289.0,13.19152948]
[1673222727125,3.98914951,1289.4,1289.1,7.75726]
[1673222727346,3.98914951,1289.4,1289.0,13.19128948]
[1673222727347,19.50078951,1289.4,1289.0,13.19128948]
[1673222727516,19.50078951,1289.4,1289.0,1.15566948]
[1673222727517,15.51348,1289.2,1289.0,1.15566948]
[1673222727723,11.74588951,1289.2,1289.0,1.15566948]
[1673222728310,11.31588951,1289.2,1289.0,1.15566948]
[1673222729870,1.229,1289.1,1289.0,1.15566948]
[1673222730448,19.50305951,1289.2,1289.1,2.35570696]
[1673222732223,31.93504951,1289.2,1289.1,2.35570696]
[1673222734097,56.02924951,1289.2,1289.1,2.35570696]
[1673222739187,56.02924951,1289.2,1289.1,1.15298224]
[1673222739436,56.02924951,1289.2,1289.0,1.15566948]
[1673222739621,56.02924951,1289.2,1289.0,9.48e-06]
[1673222739622,21.20044951,1289.1,1289.0,9.48e-06]
[1673222739834,44.47249951,1289.1,1289.0,9.48e-06]
[1673222740384,53.94449951,1289.1,1289.0,9.48e-06]
[1673222741910,52.66249951,1289.1,1289.0,9.48e-06]
[1673222742175,53.94149951,1289.1,1289.0,9.48e-06]
[1673222742863,53.94149951,1289.1,1288.7,0.55876786]
[1673222743007,18.675,1288.9,1288.7,0.55876786]
[1673222743240,13.66414951,1288.8,1288.7,0.55876786]
[1673222743616,8.98914951,1288.8,1288.7,8.31851786]
[1673222743833,5.0,1288.8,1288.7,0.55876786]
[1673222744067,21.42329951,1288.8,1288.7,0.55876786]
[1673222744290,36.94159951,1288.8,1288.7,0.55876786]
[1673222744454,14.24654951,1288.8,1288.7,0.55876786]
[1673222744653,14.24654951,1288.8,1288.7,9.53951786]
[1673222744654,5.0,1288.8,1288.7,9.53951786]
[1673222744868,4.675,1288.9,1288.7,25.05901786]
[1673222745079,3.98914951,1288.9,1288.7,25.05901786]
[1673222745560,3.98914951,1288.9,1288.8,13.25915]
[1673222745715,8.98914951,1288.9,1288.8,21.0183]
[1673222745919,3.98914951,1288.9,1288.8,5.5]
[1673222747250,4.675,1289.0,1288.8,28.77745]
[1673222747386,8.66414951,1289.0,1288.8,13.25915]
[1673222747922,8.66414951,1289.0,1288.8,5.5]
[1673222748378,12.43209,1289.2,1288.8,21.0179]
[1673222748589,4.675,1289.2,1288.9,1.282]
[1673222748805,7.75514,1289.5,1289.0,23.27385]
[1673222749146,5.0,1289.1,1289.0,23.74871163]
[1673222749490,5.0,1289.1,1289.0,0.47486163]
[1673222749755,23.1571,1289.3,1289.0,0.47486163]
[1673222749944,3.98914951,1289.2,1289.0,0.47486163]
[1673222750893,11.74598951,1289.2,1288.9,3.0]
[1673222751249,3.98914951,1289.2,1288.9,18.51677]
[1673222751462,3.98914951,1289.2,1288.9,3.0]
[1673222751684,19.50326951,1289.2,1288.9,3.0]
[1673222751828,19.50326951,1289.2,1288.9,3.47486163]
[1673222752194,11.74620951,1289.2,1288.9,3.47486163]
[1673222752345,11.79620951,1289.2,1288.9,11.23328163]
[1673222752558,11.74620951,1289.2,1288.9,11.23328163]
[1673222752886,27.26000951,1289.2,1288.9,3.47486163]
[1673222753082,27.26000951,1289.2,1288.9,0.47486163]
[1673222754289,19.50294951,1289.2,1288.9,0.47486163]
[1673222754504,19.50294951,1289.2,1288.9,8.23337163]
[1673222754815,11.74588951,1289.2,1288.9,0.47486163]
[1673222755023,23.27022,1289.2,1288.8,4.278]
[1673222755242,23.27022,1289.2,1288.7,16.47810786]
[1673222755243,24.17969951,1289.1,1288.7,0.55876786]
[1673222755391,15.5171,1288.9,1288.7,0.55876786]
[1673222756479,27.26479951,1288.9,1288.7,0.55876786]
[1673222756690,11.74769951,1288.9,1288.7,0.55876786]
[1673222756868,19.50624951,1288.9,1288.7,0.55876786]
[1673222757084,11.74769951,1288.9,1288.7,0.55876786]
[1673222757323,3.98914951,1288.8,1288.7,0.55876786]
[1673222757654,11.74829951,1288.8,1288.7,0.55876786]
[1673222758078,3.98914951,1288.8,1288.7,0.55876786]
[1673222760392,27.26659951,1288.8,1288.7,0.55876786]
[1673222760702,3.98914951,1288.8,1288.7,0.55876786]
[1673222761130,3.98914951,1288.8,1288.7,16.07826786]
[1673222761486,3.98914951,1288.8,1288.7,23.83801786]
[1673222761719,5.2574,1288.9,1288.7,24.31287949]
[1673222761931,0.5823,1289.0,1288.7,24.31287949]
[1673222762196,3.98914951,1289.0,1288.7,25.59487949]
[1673222762406,8.33937,1289.2,1288.7,25.59487949]
[1673222762629,3.98914951,1289.1,1288.7,25.59487949]
[1673222762991,3.98914951,1289.1,1288.7,17.83512949]
[1673222763242,3.98914951,1289.1,1288.7,25.59487949]
[1673222763405,27.94653,1289.2,1288.9,1.282]
[1673222763406,4.675,1289.2,1288.9,1.282]
[1673222763614,3.98914951,1289.2,1288.9,6.782]
[1673222763882,19.5476,1289.4,1289.0,25.03071163]
[1673222764094,5.0,1289.1,1289.0,25.03071163]
[1673222764305,4.57134951,1289.4,1289.1,0.47486163]
[1673222764457,4.57134951,1289.4,1289.2,5.5]
[1673222765084,4.57134951,1289.4,1289.0,27.99971163]
[1673222765085,5.0,1289.3,1289.0,27.99971163]
[1673222765340,5.0,1289.3,1288.9,12.0252]
[1673222765341,7.75674,1289.2,1288.9,12.0252]
[1673222765559,7.75674,1289.2,1288.9,6.778]
[1673222765560,15.51348,1289.2,1288.9,6.778]
[1673222765727,7.75674,1289.2,1288.9,14.53653]
[1673222765929,7.75674,1289.2,1288.9,7.25009049]
[1673222766140,3.98914951,1289.3,1288.9,30.52574049]
[1673222766471,5.2572,1289.4,1288.9,30.52574049]
[1673222766687,5.2571,1289.5,1289.0,1.282]
[1673222766889,8.66414951,1289.5,1289.1,24.55312]
[1673222767312,16.41910951,1289.5,1289.1,15.51408]
[1673222767528,24.17406951,1289.5,1289.1,15.98894163]
[1673222767733,8.66414951,1289.4,1289.1,0.47486163]
[1673222768038,39.68870951,1289.3,1288.9,5.2572]
[1673222768377,25.68215951,1289.2,1288.7,21.33375786]
[1673222768597,7.75807,1289.0,1288.7,13.57446786]
[1673222768772,11.74721951,1289.0,1288.7,0.55876786]
[1673222769133,19.50528951,1289.0,1288.7,0.55876786]
[1673222769659,3.98914951,1289.0,1288.7,8.31843786]
[1673222770688,11.74709951,1289.0,1288.7,8.31843786]
[1673222770911,0.05,1288.9,1288.7,8.31843786]
[1673222771129,11.74709951,1289.0,1288.7,8.31843786]
[1673222771343,11.74709951,1289.0,1288.7,13.81843786]
[1673222771655,5.2573,1289.1,1288.8,5.5]
[1673222771872,3.98914951,1289.1,1288.9,23.27529]
[1673222772496,0.5822,1289.2,1288.9,22.02529]
[1673222772706,0.5822,1289.3,1288.9,23.78215163]
[1673222772876,4.57134951,1289.4,1288.9,23.78215163]
[1673222773092,0.5822,1289.4,1289.0,6.782]
[1673222773281,13.01216,1289.5,1289.1,7.75722]
[1673222773492,17.00130951,1289.5,1289.1,8.23208163]
[1673222773703,3.98914951,1289.4,1289.2,0.47486163]
[1673222773974,3.98914951,1289.4,1289.2,8.23134163]
[1673222774128,3.98914951,1289.4,1289.2,13.73134163]
[1673222774338,3.98914951,1289.4,1289.2,5.97486163]
[1673222774544,11.74483951,1289.4,1289.2,0.47486163]
[1673222774756,31.93106951,1289.4,1289.1,0.0044802]
[1673222774968,7.75674,1289.2,1288.9,15.9743]
[1673222775223,24.17762951,1289.2,1288.7,28.23874786]
[1673222775381,16.42088951,1289.2,1288.8,10.75862]
[1673222775595,3.98914951,1289.1,1288.8,3.0]
[1673222775854,3.98914951,1289.1,1288.8,7.7591]
[1673222777488,3.98914951,1289.1,1288.8,15.51825]
[1673222778135,11.74651951,1289.1,1288.8,15.51825]
[1673222778484,19.50388951,1289.1,1288.7,6.28346786]
[1673222778698,19.50388951,1289.1,1288.7,0.55876786]
[1673222778699,3.98914951,1289.0,1288.7,0.55876786]
[1673222778858,31.0342,1288.9,1288.7,0.55876786]
[1673222779267,1.229,1288.8,1288.7,0.55876786]
[1673222779482,8.98815,1288.8,1288.7,0.55876786]
[1673222779800,24.50645,1288.8,1288.7,0.55876786]
[1673222780218,12.97729951,1288.8,1288.7,0.55876786]
[1673222780427,20.73644951,1288.8,1288.7,0.55876786]
[1673222780847,12.97729951,1288.8,1288.7,0.55876786]
[1673222781701,5.21814951,1288.8,1288.7,0.55876786]
[1673222782160,12.97729951,1288.8,1288.7,0.55876786]
[1673222782549,28.49559951,1288.8,1288.7,0.55876786]
[1673222782982,20.73644951,1288.8,1288.7,0.55876786]
[1673222783792,5.2573,1289.0,1288.7,1.77976786]
[1673222784159,0.5823,1289.0,1288.7,25.05901786]
[1673222784372,40.90674,1289.1,1288.7,25.05901786]
[1673222784564,37.13834951,1289.1,1288.7,25.05901786]
[1673222784963,41.81334951,1289.1,1288.7,25.05901786]
[1673222785263,23.24644951,1289.1,1288.7,25.05901786]
[1673222787487,22.66414951,1289.1,1288.7,25.05901786]
[1673222788311,9.47644951,1289.0,1288.7,0.55876786]
[1673222788513,24.18124951,1288.9,1288.7,0.55876786]
[1673222788728,3.98914951,1288.8,1288.7,0.55876786]
[1673222788993,11.74829951,1288.8,1288.7,0.55876786]
[1673222789162,3.98914951,1288.8,1288.7,23.83801786]
[1673222789396,4.675,1288.9,1288.7,23.83801786]
[1673222789626,8.66414951,1288.9,1288.7,23.83801786]
[1673222790206,0.5823,1289.0,1288.7,23.83801786]
[1673222790414,4.57144951,1289.0,1288.7,23.83801786]
[1673222790870,4.57144951,1289.0,1288.7,24.31287949]
[1673222790871,0.5823,1289.0,1288.7,24.31287949]
[1673222791047,27.01466,1289.1,1288.7,24.31287949]
[1673222791253,31.00380951,1289.1,1288.7,24.31287949]
[1673222791693,1.229,1288.8,1288.7,1.03362949]
[1673222792131,1.229,1288.8,1288.7,7.75975]
[1673222792317,20.15165951,1289.0,1288.7,7.75975]
[1673222792527,3.98914951,1288.9,1288.7,7.75975]
[1673222792741,3.98914951,1288.9,1288.6,15.52006]
[1673222792970,11.74784951,1288.9,1288.5,16.80334]
[1673222793162,27.26509951,1288.9,1288.5,24.56403]
[1673222793373,19.50639951,1288.9,1288.5,24.56403]
[1673222793615,3.98914951,1288.9,1288.5,24.56403]
[1673222794198,0.5823,1289.0,1288.5,30.06403]
[1673222794668,0.5823,1289.0,1288.6,1.272]
[1673222794847,0.5823,1289.0,1288.7,23.27889]
[1673222795270,27.01466,1289.1,1288.7,23.27889]
[1673222795466,17.00380951,1289.1,1288.7,23.27889]
[1673222795676,9.24644951,1289.1,1288.7,23.27889]
[1673222796088,17.00383951,1289.1,1288.7,23.27889]
[1673222796420,32.51861951,1289.1,1288.7,15.51926]
[1673222796867,3.98914951,1289.0,1288.6,7.76026]
[1673222797052,7.75867,1288.9,1288.6,7.76026]
[1673222797457,7.75867,1288.9,1288.4,18.3885274]
[1673222797458,8.66414951,1288.8,1288.4,13.9535274]
[1673222797808,8.66414951,1288.8,1288.4,7.8228874]
[1673222797809,3.98914951,1288.7,1288.4,7.8228874]
[1673222798337,3.98914951,1288.7,1288.4,0.0614174]
[1673222798549,19.50912951,1288.7,1288.4,0.0614174]
[1673222798758,11.74913951,1288.7,1288.4,0.0614174]
[1673222799140,3.98914951,1288.7,1288.4,0.0614174]
[1673222799553,3.98914951,1288.7,1288.4,7.8227474]
[1673222799667,11.74890951,1288.7,1288.4,0.0614174]
[1673222799882,19.50866951,1288.7,1288.4,0.0614174]
[1673222800150,27.26842951,1288.7,1288.4,0.0614174]
[1673222800508,19.50866951,1288.7,1288.4,0.0614174]
[1673222800712,3.98914951,1288.7,1288.4,15.5845274]
[1673222800987,5.2574,1288.8,1288.4,23.3460874]
[1673222801302,4.57154951,1288.8,1288.4,23.3460874]
[1673222801613,12.4641,1289.0,1288.5,1.282]
[1673222801773,0.05,1288.7,1288.6,23.28015]
[1673222801978,8.66414951,1289.0,1288.6,23.28015]
[1673222802189,8.66414951,1289.0,1288.7,1.282]
[1673222802190,0.5823,1289.0,1288.7,1.282]
[1673222802679,0.5823,1289.0,1288.8,23.27745]
[1673222802821,18.909,1289.1,1288.8,23.27745]
[1673222803036,4.57144951,1289.1,1288.8,23.27745]
[1673222803241,4.57144951,1289.1,1288.8,7.75915]
[1673222803770,4.57144951,1289.1,1288.8,15.5183]
[1673222804292,12.32881951,1289.1,1288.8,15.5183]
[1673222804739,4.57144951,1289.1,1288.8,15.5183]
[1673222804943,4.57144951,1289.1,1288.8,23.27745]
[1673222805765,4.57144951,1289.1,1288.8,15.5183]
[1673222806348,12.32881951,1289.1,1288.7,9.04138]
[1673222806498,27.84355951,1289.1,1288.7,16.80077]
[1673222806708,4.57144951,1289.1,1288.7,16.80077]
[1673222806954,4.57144951,1289.1,1288.7,24.56052]
[1673222807763,36.4812772,1289.3,1288.7,24.56052]
[1673222807972,34.73104951,1289.3,1288.9,6.782]
[1673222808227,34.73104951,1289.3,1288.9,32.31508]
[1673222808228,3.98914951,1289.3,1288.9,32.31508]
[1673222808554,4.57134951,1289.3,1289.0,0.47486163]
[1673222808872,14.0,1289.4,1289.1,23.27205]
[1673222809191,11.74550951,1289.3,1289.0,7.75772]
[1673222809399,14.0,1289.4,1289.1,15.51458]
[1673222809569,0.71509482,1289.5,1289.1,23.27193]
[1673222809754,18.12214433,1289.5,1289.1,23.27193]
[1673222809972,18.12214433,1289.5,1289.1,24.55393]
[1673222810289,4.12214433,1289.5,1289.1,24.55393]
[1673222810730,0.5822,1289.4,1289.1,24.55393]
[1673222811818,4.70424433,1289.5,1289.1,24.55393]
[1673222812174,7.20424433,1289.5,1289.1,24.55393]
[1673222812389,4.70424433,1289.5,1289.1,24.55393]
[1673222813066,10.20424433,1289.5,1289.1,24.55393]
[1673222813281,4.70424433,1289.5,1289.1,24.55393]
[1673222813717,0.71509482,1289.5,1289.1,24.55393]
[1673222814020,0.71276742,1289.5,1289.1,24.55393]
[1673222815290,0.13066742,1289.5,1289.1,24.55393]
[1673222815962,4.11981693,1289.5,1289.0,1.282]
[1673222816221,4.11981693,1289.5,1289.0,4.282]
[1673222816222,0.05,1289.3,1289.0,4.282]
[1673222816434,7.39681693,1289.5,1289.0,9.03941]
[1673222816435,22.90669693,1289.5,1289.0,9.03941]
[1673222816647,14.16414951,1289.4,1288.9,3.0]
[1673222816807,11.74528951,1289.3,1288.9,18.5162]
[1673222817013,3.98914951,1289.3,1288.9,18.5162]
[1673222817228,3.98914951,1289.3,1288.9,26.27436]
[1673222817664,0.5822,1289.4,1288.9,28.03122163]
[1673222818014,0.5822,1289.4,1288.9,28.42982163]
[1673222818167,0.5822,1289.4,1289.0,1.272]
[1673222818378,0.5822,1289.4,1289.1,23.27175]
[1673222818598,0.5822,1289.4,1289.1,23.74661163]
[1673222819052,0.5822,1289.4,1289.1,23.27175]
[1673222819263,0.5822,1289.4,1289.1,7.75722]
[1673222819473,14.71276742,1289.5,1289.1,7.75722]
[1673222819663,18.70191693,1289.5,1289.1,23.27192]
[1673222819857,25.87487693,1289.5,1289.1,23.27192]
[1673222820414,18.11981693,1289.5,1289.0,1.272]
[1673222820637,8.66414951,1289.4,1288.9,4.282]
[1673222821021,8.66414951,1289.4,1289.0,23.27311]
[1673222821022,4.21914951,1289.3,1289.0,23.27311]
[1673222822291,0.23,1289.3,1289.0,23.74797163]
[1673222822511,0.5822,1289.4,1289.0,23.74797163]
[1673222822875,19.21276742,1289.5,1289.0,23.74797163]
[1673222823186,0.23,1289.4,1289.0,23.74797163]
[1673222823337,0.23,1289.4,1289.0,23.69797163]
[1673222824543,0.13066742,1289.5,1289.3,1.441]
[1673222824745,0.13066742,1289.5,1289.2,6.934]
[1673222824963,0.13066742,1289.5,1289.3,31.02456]
[1673222825294,0.13066742,1289.5,1289.4,1.443]
[1673222825657,0.13066742,1289.5,1289.4,9.19854]
[1673222826510,0.13066742,1289.5,1289.3,1.91786163]
[1673222826720,7.88560742,1289.5,1289.3,1.91786163]
[1673222826922,0.13066742,1289.5,1289.3,1.443]
[1673222827132,7.88584742,1289.5,1289.2,1.434]
[1673222827375,0.13066742,1289.5,1289.2,19.94747]
[1673222827800,0.13066742,1289.5,1289.2,27.70421]
[1673222828345,0.13066742,1289.5,1289.2,1.434]
[1673222828648,7.88560742,1289.5,1289.2,9.19059]
[1673222829233,7.88560742,1289.5,1289.2,16.94733]
[1673222829464,0.13066742,1289.5,1289.2,16.94733]
[1673222830110,0.13066742,1289.5,1289.2,24.70407]
[1673222830696,0.13066742,1289.5,1289.3,1.432]
[1673222830965,0.13066742,1289.5,1289.4,1.435]
[1673222831546,0.13066742,1289.5,1289.4,9.19054]
[1673222832120,0.13066742,1289.5,1289.4,16.94608]
[1673222832436,0.13066742,1289.5,1289.4,24.70162]
[1673222832961,0.13066742,1289.5,1289.4,16.94608]
[1673222833598,0.13066742,1289.5,1289.4,29.61948163]
[1673222833805,0.13066742,1289.5,1289.4,35.04663114]
[1673222834057,0.13066742,1289.5,1289.4,48.73663114]
[1673222834231,0.13066742,1289.5,1289.4,40.94413114]
[1673222834654,0.13066742,1289.5,1289.4,33.18859114]
[1673222835065,0.13066742,1289.5,1289.4,33.13859114]
[1673222835321,0.13066742,1289.5,1289.4,20.00890163]
[1673222835542,0.13066742,1289.5,1289.4,20.01290163]
[1673222835904,0.13066742,1289.5,1289.4,35.52398163]
[1673222837228,0.13066742,1289.5,1289.4,39.51313114]
[1673222838130,0.13066742,1289.5,1289.4,14.51290163]
[1673222838344,0.13066742,1289.5,1289.4,19.38344163]
[1673222838677,0.13066742,1289.5,1289.4,26.74148163]
[1673222838851,4.11981693,1289.5,1289.1,0.3974]
[1673222839224,4.80134951,1289.4,1289.0,0.3974]
[1673222839585,4.21914951,1289.4,1288.9,30.78359]
[1673222839789,19.73066951,1289.4,1288.9,18.5251]
[1673222840563,11.97468951,1289.4,1288.9,18.5251]
[1673222841215,19.73022951,1289.4,1288.9,18.1276]
[1673222841429,1.432,1289.0,1288.7,1.15279104]
[1673222841582,0.23,1288.9,1288.7,1.15279104]
[1673222842462,2.0253,1289.1,1288.7,1.15279104]
[1673222842688,4.57144951,1289.1,1288.7,16.67211104]
[1673222842917,4.57144951,1289.1,1288.7,24.43186104]
[1673222843076,4.57144951,1289.1,1288.7,31.36986104]
[1673222843077,0.5823,1289.1,1288.7,31.36986104]
[1673222843264,0.5822,1289.2,1288.7,31.36986104]
[1673222843738,3.98914951,1289.1,1288.7,2.59079104]
[1673222843908,16.65151951,1289.1,1288.7,1.15279104]
[1673222844121,33.60923951,1289.1,1288.7,4.15279104]
[1673222844520,33.60923951,1289.1,1288.7,1.15279104]
[1673222844946,3.98914951,1289.0,1288.7,1.15279104]
[1673222845320,10.33714951,1288.9,1288.7,1.15279104]
[1673222845626,3.98914951,1288.8,1288.7,1.15279104]
[1673222845845,4.21914951,1288.8,1288.7,1.15279104]
[1673222848254,11.97829951,1288.8,1288.7,1.15279104]
[1673222848873,4.21914951,1288.8,1288.7,1.15279104]
[1673222849611,0.5824,1288.9,1288.7,1.15279104]
[1673222849798,0.5824,1288.9,1288.7,24.43204104]
[1673222850009,0.5824,1288.9,1288.7,16.67229104]
[1673222850222,3.5823,1289.0,1288.7,16.67229104]
[1673222850430,0.5823,1289.0,1288.7,16.67229104]
[1673222850656,33.8552,1289.1,1288.7,16.67229104]
[1673222850875,7.75802,1289.0,1288.7,16.67229104]
[1673222851046,3.98914951,1288.9,1288.7,1.15279104]
[1673222851260,8.98815,1288.8,1288.7,1.15279104]
[1673222851998,28.49559951,1288.8,1288.7,1.15279104]
[1673222852201,28.72559951,1288.8,1288.7,1.15279104]
[1673222852409,20.96644951,1288.8,1288.7,1.15279104]
[1673222852619,28.72559951,1288.8,1288.7,1.15279104]
[1673222853057,8.34128,1288.9,1288.7,1.15279104]
[1673222853274,0.05,1288.8,1288.7,1.15279104]
[1673222853621,11.74829951,1288.8,1288.7,1.15279104]
[1673222853786,19.50744951,1288.8,1288.7,1.15279104]
[1673222854192,27.26659951,1288.8,1288.7,1.15279104]
[1673222854453,28.07899951,1288.8,1288.7,1.15279104]
[1673222854665,33.07899951,1288.8,1288.7,1.15279104]
[1673222854934,9.71454951,1288.8,1288.7,1.15279104]
[1673222855178,32.99199951,1288.8,1288.7,1.15279104]
[1673222855579,32.99199951,1288.8,1288.7,1.10279104]
[1673222856666,37.66699951,1288.8,1288.7,1.10279104]
[1673222856992,38.93799951,1288.8,1288.7,1.10279104]
[1673222857143,57.22099951,1288.8,1288.7,1.10279104]
[1673222857351,64.98014951,1288.8,1288.7,1.04e-06]
[1673222858019,70.75414951,1288.8,1288.4,0.0614174]
[1673222858212,5.958,1288.5,1288.4,0.0614174]
[1673222858400,10.52974951,1288.5,1288.4,0.0614174]
[1673222858610,10.75974951,1288.5,1288.4,0.0614174]
[1673222858851,9.47674951,1288.5,1288.4,0.0614174]
[1673222859115,4.80174951,1288.5,1288.4,0.0614174]
[1673222859329,5.8126,1288.5,1288.4,1.2824174]
[1673222859502,5.23,1288.5,1288.4,16.8055374]
[1673222860046,5.0,1288.5,1288.4,0.0614174]
[1673222860585,15.52192,1288.5,1288.4,0.0614174]
[1673222860741,7.76096,1288.5,1288.4,0.0614174]
[1673222860953,3.98914951,1288.5,1288.4,0.0614174]
[1673222861212,25.89414951,1288.5,1288.4,0.0614174]
[1673222861429,26.47674951,1288.5,1288.4,0.0614174]
[1673222861792,34.23770951,1288.5,1288.4,0.0614174]
[1673222862159,31.47674951,1288.5,1288.4,0.0614174]
[1673222862373,46.99866951,1288.5,1288.4,0.0614174]
[1673222862584,54.75962951,1288.5,1288.4,0.0614174]
[1673222863435,40.75962951,1288.5,1288.4,0.0614174]
[1673222863794,5.8126,1288.5,1288.4,15.5845374]
[1673222863966,5.0,1288.5,1288.4,9.51883903]
[1673222864135,0.5825,1288.6,1288.4,25.04195903]
[1673222864491,0.5824,1288.8,1288.4,25.04195903]
[1673222864799,3.98914951,1288.7,1288.4,23.82095903]
[1673222864974,0.5825,1288.6,1288.4,0.48627903]
[1673222865182,0.5825,1288.6,1288.4,16.00928903]
[1673222865587,0.5825,1288.6,1288.4,23.77084903]
[1673222865812,0.5825,1288.6,1288.4,8.24772903]
[1673222866383,0.5825,1288.6,1288.4,0.48627903]
[1673222866536,0.5825,1288.6,1288.5,23.28288]
[1673222866744,5.8125,1288.6,1288.5,23.28288]
[1673222866955,5.23,1288.6,1288.5,23.28288]
[1673222867381,5.0,1288.6,1288.5,23.28288]
[1673222867595,21.28226,1289.0,1288.5,31.51870163]
[1673222867596,0.5824,1288.8,1288.5,31.51870163]
[1673222867848,23.99655951,1289.0,1288.5,31.51870163]
[1673222868061,27.29529,1289.1,1288.5,31.51870163]
[1673222868062,18.2617,1289.1,1288.5,35.50785114]
[1673222868280,18.2617,1289.1,1288.6,8.5]
[1673222868590,18.2617,1289.1,1288.7,7.75945]
[1673222868735,41.53395,1289.1,1288.7,0.47486163]
[1673222868944,45.52309951,1289.1,1288.7,0.47486163]
[1673222869908,0.23,1289.0,1288.7,0.47486163]
[1673222870157,7.75855,1288.9,1288.7,0.47486163]
[1673222870343,7.98824,1289.0,1288.7,0.47486163]
[1673222870524,19.73577951,1289.0,1288.7,0.47486163]
[1673222871167,11.97738951,1289.0,1288.7,0.47486163]
[1673222871392,12.55968951,1289.0,1288.7,0.47486163]
[1673222871751,4.80144951,1289.0,1288.7,23.75392163]
[1673222872349,0.8123,1289.0,1288.8,0.47486163]
[1673222872557,0.8123,1289.0,1288.9,23.27565]
[1673222873055,0.23,1289.0,1288.9,23.27565]
[1673222873472,0.23,1289.0,1288.9,7.75855]
[1673222874218,0.23,1289.0,1288.8,15.99276163]